bitfinex-derivatives/quotes_SOLF0:USTF0_20250404
["timestamp","ask_amount","ask_price","bid_price","bid_amount"]
[1743729205965,0.06143117,115.9,115.88,0.06319157]
[1743729207071,0.06143117,115.9,115.89,8.6321]
[1743729207479,0.06143117,115.9,115.89,40.1121]
[1743729208274,0.06143117,115.9,115.89,31.48]
[1743729209774,0.06143117,115.9,115.89,40.1121]
[1743729209970,8.6287,115.94,115.89,31.48]
[1743729210273,8.6281,115.95,115.91,8.6301]
[1743729210573,17.56222738,115.98,115.92,31.46]
[1743729210774,8.6266,115.97,115.92,31.46]
[1743729211373,0.05682526,115.96,115.93,0.05786789]
[1743729211867,0.05682526,115.96,115.93,8.68666789]
[1743729212070,0.05682526,115.96,115.93,0.05786789]
[1743729212269,0.05682526,115.96,115.93,17.62009527]
[1743729213164,0.05682526,115.96,115.94,62.0]
[1743729214077,0.05682526,115.96,115.94,70.6283]
[1743729214282,0.05682526,115.96,115.94,62.0]
[1743729214475,0.05682526,115.96,115.95,31.46]
[1743729214673,0.05682526,115.96,115.95,40.0876]
[1743729219476,572.89592738,116.1,115.95,49.02222738]
[1743729219672,2.2087,116.05,115.97,17.56222738]
[1743729219879,4.4601,116.04,115.98,40.0651]
[1743729220069,22.02232738,116.04,115.97,17.56222738]
[1743729220273,22.02232738,116.04,115.96,31.44]
[1743729220569,31.44,116.03,115.96,31.44]
[1743729220770,0.0560872,116.01,115.99,0.06306493]
[1743729220979,0.0560872,116.01,115.96,31.44]
[1743729221173,0.0560872,116.01,115.93,17.56222738]
[1743729221374,49.00222738,116.0,115.94,31.44]
[1743729221575,40.0642,116.0,115.95,8.6273]
[1743729221778,31.44,116.0,115.95,8.6273]
[1743729222276,0.06464551,115.99,115.96,0.06543831]
[1743729222476,0.06464551,115.99,115.96,8.69223831]
[1743729223480,0.06464551,115.99,115.96,0.06543831]
[1743729224681,0.06464551,115.99,115.97,31.44]
[1743729224877,0.06464551,115.99,115.98,8.6254]
[1743729225182,4.4601,116.04,115.98,17.56222738]
[1743729225571,4.4601,116.04,116.0,8.6237]
[1743729225771,13.0815,116.04,116.0,8.6237]
[1743729226476,0.06170334,116.03,116.01,0.06247072]
[1743729227582,0.06170334,116.03,116.01,62.06247072]
[1743729228588,8.68370334,116.03,116.01,62.06247072]
[1743729228888,0.06170334,116.03,116.01,62.06247072]
[1743729229678,0.06170334,116.03,116.01,0.06247072]
[1743729230583,8.68360334,116.03,116.01,0.06247072]
[1743729230784,0.06170334,116.03,116.01,0.06247072]
[1743729231284,8.68370334,116.03,116.01,0.06247072]
[1743729231480,8.68370334,116.03,115.98,17.56222738]
[1743729231684,31.42,116.02,115.92,31.42]
[1743729231984,31.42,116.02,115.93,17.56222738]
[1743729232185,40.0429,116.02,115.95,17.56222738]
[1743729232381,35.8801,116.04,115.95,48.98222738]
[1743729232582,35.8801,116.04,115.99,8.6245]
[1743729232787,0.06496262,116.01,115.98,31.4797526]
[1743729232980,0.06496262,116.01,115.98,31.42]
[1743729233181,0.06496262,116.01,115.98,40.10080452]
[1743729233687,0.06496262,116.01,115.99,11.20444196]
[1743729233888,0.06496262,116.01,115.99,19.82894196]
[1743729234489,0.06496262,116.01,115.99,11.20444196]
[1743729235084,0.06496262,116.01,115.99,19.82904196]
[1743729236187,0.06496262,116.01,116.0,62.0]
[1743729236689,0.06496262,116.01,116.0,73.20444196]
[1743729237390,0.06496262,116.01,116.0,62.0]
[1743729238691,0.06496262,116.01,115.98,42.68044648]
[1743729238892,0.06496262,116.01,115.98,31.47600452]
[1743729239392,8.68856262,116.01,115.98,31.47600452]
[1743729239992,0.06496262,116.01,115.98,31.47600452]
[1743729240191,0.06496262,116.01,115.98,40.10130452]
[1743729240393,0.06496262,116.01,115.98,51.30574648]
[1743729241096,0.06496262,116.01,115.99,19.82904196]
[1743729241696,0.06496262,116.01,115.99,81.82904196]
[1743729242395,0.06496262,116.01,115.99,73.20444196]
[1743729242696,0.06496262,116.01,116.0,11.20444196]
[1743729242889,2.2087,116.05,116.0,11.20444196]
[1743729243089,2.2087,116.05,116.02,11.20444196]
[1743729243691,10.8291,116.05,116.02,11.20444196]
[1743729243888,2.2087,116.05,116.02,11.20444196]
[1743729244194,13.47896381,116.05,116.02,0.0631657]
[1743729244399,8.6217,116.03,116.02,0.0631657]
[1743729245199,11.20444196,116.03,115.98,11.20444196]
[1743729245394,11.20444196,116.02,115.97,42.62444196]
[1743729245692,8.6239,116.0,115.97,31.42]
[1743729245895,31.42,116.01,115.94,21.97916414]
[1743729246195,8.626,115.98,115.96,0.06448339]
[1743729246396,0.05487472,115.99,115.96,0.06448339]
[1743729247507,8.68017472,115.99,115.96,0.06448339]
[1743729247708,0.05487472,115.99,115.96,0.06448339]
[1743729248004,8.6261,115.97,115.96,0.06448339]
[1743729248508,0.05487472,115.99,115.96,0.06448339]
[1743729248711,8.6258,115.98,115.96,0.06448339]
[1743729249105,8.6258,115.98,115.97,62.0]
[1743729249609,8.6258,115.98,115.96,0.06448339]
[1743729250000,0.05487472,115.99,115.96,0.06448339]
[1743729250612,8.6257,115.98,115.96,0.06448339]
[1743729250905,0.05487472,115.99,115.96,0.06448339]
[1743729251112,8.6261,115.97,115.96,0.06448339]
[1743729251311,19.71096414,115.98,115.9,557.47216414]
[1743729251511,22.01886414,115.98,115.91,31.42]
[1743729251712,8.6287,115.94,115.91,31.42]
[1743729252209,8.6289,115.94,115.91,31.42]
[1743729252410,8.6289,115.94,115.92,62.0]
[1743729252612,8.69458016,115.94,115.92,62.0]
[1743729252807,0.06568016,115.94,115.92,62.0]
[1743729253007,0.06568016,115.94,115.92,93.42]
[1743729253311,0.06568016,115.94,115.93,8.6291]
[1743729256012,2.3292,116.0,115.95,8.627]
[1743729256406,2.3292,116.0,115.95,40.047]
[1743729256809,19.84196414,116.0,115.93,31.42]
[1743729257208,0.05797119,115.98,115.95,0.06182492]
[1743729257512,0.05797119,115.98,115.96,62.0]
[1743729260212,0.05797119,115.98,115.96,70.6263]
[1743729261109,0.05797119,115.98,115.95,0.06182492]
[1743729261315,17.57073533,115.98,115.91,31.42]
[1743729261519,17.51276414,115.98,115.91,31.42]
[1743729261710,2.3002,115.97,115.91,31.42]
[1743729261910,8.628,115.95,115.91,31.42]
[1743729262218,17.51276414,115.96,115.9,31.42]
[1743729262417,0.06515912,115.94,115.92,0.05954626]
[1743729262716,8.69425912,115.94,115.92,0.05954626]
[1743729263215,8.6291,115.93,115.92,0.05954626]
[1743729263716,8.69405912,115.94,115.92,0.05954626]
[1743729264815,8.6291,115.93,115.92,0.05954626]
[1743729265212,0.06515912,115.94,115.92,0.05954626]
[1743729265711,8.69385912,115.94,115.92,0.05954626]
[1743729269419,8.6291,115.93,115.92,0.05954626]
[1743729269620,0.06515912,115.94,115.92,0.05954626]
[1743729269921,8.6291,115.93,115.92,0.05954626]
[1743729270722,0.06515912,115.94,115.92,0.05954626]
[1743729276328,0.06515912,115.94,115.93,8.6291]
[1743729278526,0.06515912,115.94,115.93,70.6291]
[1743729279931,0.06515912,115.94,115.92,8.68894626]
[1743729280131,0.06515912,115.94,115.92,0.05954626]
[1743729280533,8.69385912,115.94,115.92,0.05954626]
[1743729281336,0.06515912,115.94,115.92,0.05954626]
[1743729281921,0.06515912,115.94,115.92,8.68874626]
[1743729282933,0.06515912,115.94,115.93,62.0]
[1743729285333,0.06515912,115.94,115.93,70.6291]
[1743729286132,0.06515912,115.94,115.93,62.0]
[1743729287536,0.06515912,115.94,115.92,31.49954626]
[1743729287841,0.06515912,115.94,115.93,8.6291]
[1743729289437,13.1484,115.99,115.95,8.6274]
[1743729290738,0.05526353,115.98,115.96,0.06008884]
[1743729291736,0.05526353,115.98,115.97,8.6261]
[1743729292338,0.05526353,115.98,115.96,8.68668884]
[1743729292639,0.05526353,115.98,115.96,0.06008884]
[1743729293241,0.05526353,115.98,115.96,8.68668884]
[1743729294844,0.05526353,115.98,115.97,8.6261]
[1743729297547,0.05526353,115.98,115.96,8.68658884]
[1743729297843,0.05526353,115.98,115.96,0.06008884]
[1743729298248,0.05526353,115.98,115.96,8.68648884]
[1743729300247,0.05526353,115.98,115.96,0.06008884]
[1743729301348,0.05526353,115.98,115.92,93.42]
[1743729301547,8.6265,115.97,115.93,8.6288]
[1743729301753,0.05526353,115.98,115.92,31.42]
[1743729301943,8.6244,116.0,115.93,17.51276414]
[1743729302252,31.42,116.01,115.93,17.51276414]
[1743729302449,0.05489942,115.98,115.97,8.6261]
[1743729303159,4.3597,116.02,115.99,8.624]
[1743729303461,4.3597,116.02,115.97,17.51276414]
[1743729303651,40.0413,116.04,115.97,17.51276414]
[1743729303861,40.0406,116.05,115.99,17.51276414]
[1743729304060,40.0406,116.05,115.99,48.93276414]
[1743729304368,0.05844772,116.03,116.01,0.06413062]
[1743729304761,0.05844772,116.03,116.01,62.06413062]
[1743729306062,8.6224,116.02,116.01,0.06413062]
[1743729306262,8.6224,116.02,115.95,17.51276414]
[1743729306263,31.42,116.02,115.95,31.42]
[1743729306558,2.195,116.01,115.95,31.42]
[1743729306752,8.6244,116.0,115.95,40.0473]
[1743729307364,0.05639807,115.99,115.96,0.0624913]
[1743729308555,0.05639807,115.99,115.96,8.6891913]
[1743729308761,0.05639807,115.99,115.96,0.0624913]
[1743729309063,0.05639807,115.99,115.97,62.0]
[1743729309364,0.05639807,115.99,115.97,70.6255]
[1743729310258,0.05639807,115.99,115.97,62.0]
[1743729310460,8.68109807,115.99,115.96,0.0624913]
[1743729312662,0.05639807,115.99,115.96,0.0624913]
[1743729313065,0.05639807,115.99,115.96,8.6890913]
[1743729313564,0.05639807,115.99,115.97,62.0]
[1743729314263,0.05639807,115.99,115.97,70.6258]
[1743729314458,0.05639807,115.99,115.97,62.0]
[1743729316468,0.05639807,115.99,115.97,70.6261]
[1743729316667,0.05639807,115.99,115.97,62.0]
[1743729318161,0.05639807,115.99,115.96,0.0624913]
[1743729318367,31.47639807,115.99,115.96,0.0624913]
[1743729318566,8.6261,115.97,115.96,0.0624913]
[1743729320570,2.3027,115.98,115.96,0.0624913]
[1743729321166,10.9281,115.98,115.96,0.0624913]
[1743729322271,31.47639807,115.99,115.96,0.0624913]
[1743729322573,0.05639807,115.99,115.96,0.0624913]
[1743729322761,0.05639807,115.99,115.97,8.6255]
[1743729323166,0.05639807,115.99,115.96,31.4824913]
[1743729323360,0.05639807,115.99,115.97,8.6255]
[1743729324163,0.05639807,115.99,115.96,40.1089913]
[1743729324368,0.05639807,115.99,115.96,31.4824913]
[1743729324671,8.6254,115.98,115.96,0.0624913]
[1743729325667,8.68149807,115.99,115.96,0.0624913]
[1743729326670,8.6254,115.98,115.96,0.0624913]
[1743729326872,0.05639807,115.99,115.96,0.0624913]
[1743729327173,8.6255,115.98,115.96,0.0624913]
[1743729328373,0.05639807,115.99,115.96,0.0624913]
[1743729328579,0.05639807,115.99,115.97,31.42]
[1743729329878,0.05639807,115.99,115.98,8.6254]
[1743729330273,0.05639807,115.99,115.97,31.42]
[1743729330475,0.05639807,115.99,115.97,40.0458]
[1743729330675,0.05639807,115.99,115.97,31.42]
[1743729331073,0.05639807,115.99,115.98,8.6254]
[1743729331377,0.05639807,115.99,115.98,70.6254]
[1743729331770,0.05639807,115.99,115.98,62.0]
[1743729332276,0.05639807,115.99,115.98,70.6254]
[1743729332473,0.05639807,115.99,115.98,62.0]
[1743729332876,0.05639807,115.99,115.98,70.6254]
[1743729333066,0.05639807,115.99,115.98,62.0]
[1743729335577,0.05639807,115.99,115.96,0.0624913]
[1743729336076,4.65349807,115.99,115.96,0.0624913]
[1743729336378,8.6261,115.97,115.96,0.0624913]
[1743729341782,31.42,115.97,115.89,17.51276414]
[1743729342076,2.178,115.96,115.89,17.51276414]
[1743729342277,19.69076414,115.96,115.87,48.93276414]
[1743729342479,2.2391,115.95,115.87,48.93276414]
[1743729342783,8.6299,115.92,115.88,8.6325]
[1743729342984,8.69599044,115.92,115.9,0.05131915]
[1743729343184,0.06609044,115.92,115.9,0.05131915]
[1743729344686,40.0506,115.91,115.9,0.05131915]
[1743729344879,31.42,115.91,115.83,17.51276414]
[1743729345075,2.2504,115.9,115.83,48.93276414]
[1743729345484,2.3475,115.89,115.83,48.93276414]
[1743729345680,8.6336,115.87,115.83,31.42]
[1743729346080,0.05638363,115.86,115.83,31.42]
[1743729347484,0.05638363,115.86,115.82,8.6368]
[1743729347978,0.05638363,115.86,115.83,62.0]
[1743729350083,0.05638363,115.86,115.83,70.6361]
[1743729351880,0.05638363,115.86,115.84,8.6356]
[1743729352085,0.05638363,115.86,115.83,110.93276414]
[1743729352486,0.05638363,115.86,115.85,8.6351]
[1743729353284,0.05638363,115.86,115.84,8.6355]
[1743729354186,0.05638363,115.86,115.85,8.6351]
[1743729354387,31.42,115.92,115.85,17.51276414]
[1743729354685,33.6881,115.93,115.86,31.42]
[1743729354889,33.6881,115.93,115.87,17.51276414]
[1743729355587,0.06517483,115.91,115.89,8.68818363]
[1743729355789,0.06517483,115.91,115.89,0.05638363]
[1743729356789,0.06517483,115.91,115.83,79.51276414]
[1743729356991,31.42,115.9,115.85,31.42]
[1743729357192,8.6334,115.88,115.84,8.6354]
[1743729357692,8.6339,115.87,115.83,119.56896414]
[1743729358087,0.05480261,115.86,115.83,93.42]
[1743729358493,0.05480261,115.86,115.84,8.6354]
[1743729359792,0.05480261,115.86,115.83,93.42]
[1743729359793,0.05480261,115.86,115.83,102.0562]
[1743729359993,0.05480261,115.86,115.83,93.42]
[1743729360196,0.05480261,115.86,115.84,8.6355]
[1743729361290,0.05480261,115.86,115.85,8.6351]
[1743729361794,8.6317,115.9,115.86,8.634]
[1743729361991,8.6317,115.9,115.85,17.51276414]
[1743729362186,2.2681,115.93,115.87,17.51276414]
[1743729362384,10.8978,115.93,115.89,8.632]
[1743729362596,2.2681,115.93,115.87,48.95276414]
[1743729362797,0.05752969,115.92,115.9,0.05480261]
[1743729362999,8.6306,115.91,115.9,0.05480261]
[1743729363189,0.05752969,115.92,115.9,0.05480261]
[1743729363789,8.68782969,115.92,115.9,0.05480261]
[1743729363990,0.05752969,115.92,115.9,0.05480261]
[1743729364195,8.6281,115.95,115.91,8.6306]
[1743729364791,8.6284,115.94,115.91,8.6306]
[1743729365391,0.05437717,115.94,115.91,8.68814701]
[1743729365693,0.05437717,115.94,115.92,8.6299]
[1743729366396,0.05437717,115.94,115.91,8.68774701]
[1743729367493,0.05437717,115.94,115.92,62.0]
[1743729368495,31.47437717,115.94,115.91,0.05754701]
[1743729368689,8.6291,115.93,115.91,0.05754701]
[1743729368891,31.47437717,115.94,115.91,0.05754701]
[1743729369198,0.05437717,115.94,115.91,0.05754701]
[1743729369400,0.05437717,115.94,115.91,8.68774701]
[1743729369595,0.05437717,115.94,115.91,0.05754701]
[1743729371099,0.05437717,115.94,115.91,8.68774701]
[1743729371602,0.05437717,115.94,115.92,62.0]
[1743729372398,0.05437717,115.94,115.91,0.05754701]
[1743729373701,8.68337717,115.94,115.91,0.05754701]
[1743729374096,0.05437717,115.94,115.91,0.05754701]
[1743729375701,8.68317717,115.94,115.91,0.05754701]
[1743729376196,0.05437717,115.94,115.91,0.05754701]
[1743729376401,17.56714131,115.94,115.87,31.42]
[1743729376701,17.51276414,115.94,115.87,31.42]
[1743729376901,17.51276414,115.94,115.85,48.93276414]
[1743729377605,0.061815,115.91,115.88,0.05478529]
[1743729377800,8.6314,115.9,115.88,0.05478529]
[1743729380409,0.061815,115.91,115.88,31.47478529]
[1743729382105,0.061815,115.91,115.9,8.6314]
[1743729383609,0.061815,115.91,115.9,70.6314]
[1743729383811,6.6853,115.95,115.92,8.6298]
[1743729384511,15.313,115.95,115.91,40.0502]
[1743729384810,6.6853,115.95,115.91,40.0502]
[1743729385008,0.05904368,115.94,115.92,0.06271395]
[1743729388112,0.05904368,115.94,115.92,8.69251395]
[1743729388409,0.05904368,115.94,115.92,0.06271395]
[1743729389012,0.05904368,115.94,115.93,8.6291]
[1743729390615,8.6251,115.99,115.95,8.6273]
[1743729390915,6.8505,116.0,115.94,31.42]
[1743729391114,15.4748,116.0,115.96,8.6266]
[1743729391711,0.05781433,115.99,115.97,0.0602498]
[1743729393214,0.05781433,115.99,115.97,8.6863498]
[1743729395016,0.05781433,115.99,115.97,0.0602498]
[1743729396618,0.05781433,115.99,115.97,8.6862498]
[1743729396818,0.05781433,115.99,115.97,0.0602498]
[1743729397320,0.05781433,115.99,115.97,31.4802498]
[1743729397520,0.05781433,115.99,115.98,8.6254]
[1743729399023,0.05781433,115.99,115.97,40.1060498]
[1743729399827,0.05781433,115.99,115.98,8.6254]
[1743729401823,0.05781433,115.99,115.98,19.83252516]
[1743729404527,0.05781433,115.99,115.98,11.20712516]
[1743729405028,0.05781433,115.99,115.97,42.68737496]
[1743729405228,0.05781433,115.99,115.97,0.0602498]
[1743729405428,8.68281433,115.99,115.97,0.0602498]
[1743729406830,8.6254,115.98,115.97,0.0602498]
[1743729408629,0.05781433,115.99,115.97,0.0602498]
[1743729408630,8.68291433,115.99,115.97,0.0602498]
[1743729408830,0.05781433,115.99,115.97,0.0602498]
[1743729410633,8.6254,115.98,115.97,0.0602498]
[1743729412629,8.6276,115.95,115.9,66.5375]
[1743729412838,11.20712516,115.96,115.91,11.20712516]
[1743729413134,8.6287,115.94,115.91,11.20712516]
[1743729413938,8.69174026,115.94,115.91,11.27250889]
[1743729415136,0.06304026,115.94,115.91,11.27250889]
[1743729415338,0.06304026,115.94,115.91,19.90300889]
[1743729415530,0.06304026,115.94,115.93,11.20712516]
[1743729416035,0.06304026,115.94,115.93,19.83622516]
[1743729416240,0.06304026,115.94,115.93,11.20712516]
[1743729416733,0.06304026,115.94,115.92,31.4]
[1743729416933,8.69184026,115.94,115.92,11.20712516]
[1743729417137,0.06304026,115.94,115.91,11.27250889]
[1743729417639,0.06304026,115.94,115.92,11.20712516]
[1743729417843,0.06304026,115.94,115.93,11.20712516]
[1743729419240,0.06304026,115.94,115.93,19.83622516]
[1743729419935,0.06304026,115.94,115.93,51.23622516]
[1743729420139,8.6257,115.98,115.94,8.6277]
[1743729420339,8.6257,115.98,115.95,11.20712516]
[1743729420538,42.60712516,115.99,115.94,11.20712516]
[1743729420735,11.20712516,115.98,115.93,42.60712516]
[1743729421132,8.6257,115.98,115.94,11.20712516]
[1743729421333,0.06019674,115.97,115.95,0.06593197]
[1743729423242,0.06019674,115.97,115.95,19.90065713]
[1743729423441,0.06019674,115.97,115.96,11.20712516]
[1743729424043,0.06019674,115.97,115.96,19.83402516]
[1743729424244,0.06019674,115.97,115.96,11.20712516]
[1743729424542,0.06019674,115.97,115.95,11.27305713]
[1743729425145,0.06019674,115.97,115.95,19.90065713]
[1743729426247,0.06019674,115.97,115.95,11.27305713]
[1743729426748,0.06019674,115.97,115.95,19.90045713]
[1743729427947,0.06019674,115.97,115.95,11.27305713]
[1743729428148,0.06019674,115.97,115.95,0.06593197]
[1743729428449,8.6269,115.96,115.95,0.06593197]
[1743729428748,8.628,115.95,115.92,11.20712516]
[1743729428938,11.20712516,115.97,115.92,11.20712516]
[1743729429144,11.20712516,115.96,115.91,19.83732516]
[1743729429344,11.20712516,115.96,115.91,11.20712516]
[1743729429548,8.6281,115.95,115.91,11.20712516]
[1743729429742,8.6281,115.95,115.91,19.83762516]
[1743729429942,8.6281,115.95,115.92,0.0600241]
[1743729430145,0.05571292,115.94,115.92,0.0600241]
[1743729431251,0.05571292,115.94,115.92,11.26714926]
[1743729440060,0.05571292,115.94,115.92,0.0600241]
[1743729440454,8.68441292,115.94,115.92,0.0600241]
[1743729440654,0.05571292,115.94,115.92,0.0600241]
[1743729440954,8.68411292,115.94,115.92,0.0600241]
[1743729442659,0.05571292,115.94,115.92,0.0600241]
[1743729443262,8.68461292,115.94,115.92,0.0600241]
[1743729443465,11.26283808,115.94,115.92,0.0600241]
[1743729443661,11.20712516,115.93,115.92,0.0600241]
[1743729444261,19.83622516,115.93,115.92,0.0600241]
[1743729444561,11.20712516,115.93,115.88,11.20712516]
[1743729444755,8.6307,115.91,115.88,11.20712516]
[1743729445559,8.6302,115.92,115.88,19.83952516]
[1743729445764,0.06441131,115.91,115.88,19.89200352]
[1743729446064,0.06441131,115.91,115.89,19.83902516]
[1743729446263,0.06441131,115.91,115.9,11.20712516]
[1743729446663,0.06441131,115.91,115.9,73.20712516]
[1743729449366,0.06441131,115.91,115.9,81.83852516]
[1743729451966,0.06441131,115.91,115.9,73.20712516]
[1743729453668,0.06441131,115.91,115.88,19.89200352]
[1743729454769,8.69501131,115.91,115.88,19.89200352]
[1743729456669,8.69501131,115.91,115.89,62.0]
[1743729456871,8.6314,115.9,115.89,62.0]
[1743729457273,0.06441131,115.91,115.88,0.05247836]
[1743729458670,8.6314,115.9,115.88,0.05247836]
[1743729459671,8.6321,115.89,115.88,0.05247836]
[1743729460274,8.6321,115.89,115.88,62.05247836]
[1743729462075,8.6316,115.9,115.88,62.05247836]
[1743729462272,0.06441131,115.91,115.88,62.05247836]
[1743729462975,8.69541131,115.91,115.88,62.05247836]
[1743729463275,0.06441131,115.91,115.88,62.05247836]
[1743729463475,0.06441131,115.91,115.89,11.20712516]
[1743729463774,2.3849,115.94,115.9,11.20712516]
[1743729463979,42.62712516,115.96,115.91,11.20712516]
[1743729464174,8.6286,115.94,115.91,11.20712516]
[1743729464877,8.68954837,115.94,115.91,11.27301179]
[1743729465377,8.6292,115.93,115.91,11.27301179]
[1743729465972,0.06094837,115.94,115.91,0.06588663]
[1743729466174,8.6299,115.92,115.91,0.06588663]
[1743729466577,8.6299,115.92,115.91,62.06588663]
[1743729468180,8.6299,115.92,115.91,0.06588663]
[1743729468980,11.26807353,115.94,115.91,0.06588663]
[1743729469377,8.6299,115.92,115.91,0.06588663]
[1743729470171,19.83702516,115.92,115.91,0.06588663]
[1743729472081,8.6317,115.9,115.86,19.84102516]
[1743729472271,11.20712516,115.91,115.86,19.84102516]
[1743729472578,8.6323,115.89,115.86,11.20712516]
[1743729473178,8.69394729,115.89,115.86,11.2581282]
[1743729474082,8.69394729,115.89,115.86,19.8924282]
[1743729474382,0.06164729,115.89,115.86,19.8924282]
[1743729475077,0.06164729,115.89,115.87,62.0]
[1743729475380,0.06164729,115.89,115.87,70.6336]
[1743729475582,0.06164729,115.89,115.87,73.20712516]
[1743729476482,0.06164729,115.89,115.87,81.84032516]
[1743729478183,0.06164729,115.89,115.86,0.05100304]
[1743729478677,8.6334,115.88,115.86,0.05100304]
[1743729485495,8.6336,115.87,115.86,0.05100304]
[1743729485689,19.84072516,115.87,115.86,0.05100304]
[1743729487094,8.6336,115.87,115.86,0.05100304]
[1743729489891,19.84072516,115.87,115.86,0.05100304]
[1743729491996,8.6336,115.87,115.86,0.05100304]
[1743729492996,53.49732516,115.88,115.86,0.05100304]
[1743729494198,42.2902,115.88,115.86,0.05100304]
[1743729495390,8.6336,115.87,115.86,0.05100304]
[1743729497099,53.49732516,115.88,115.86,0.05100304]
[1743729497494,44.86402516,115.88,115.86,0.05100304]
[1743729497695,8.6336,115.87,115.86,0.05100304]
[1743729499801,42.2902,115.88,115.86,0.05100304]
[1743729499998,2.2369,115.88,115.86,0.05100304]
[1743729500498,10.8703,115.88,115.86,0.05100304]
[1743729500695,13.44402516,115.88,115.86,0.05100304]
[1743729500895,11.20712516,115.87,115.86,0.05100304]
[1743729501095,19.84072516,115.87,115.86,0.05100304]
[1743729504498,8.6358,115.84,115.83,62.0]
[1743729504802,8.6358,115.84,115.8,11.20712516]
[1743729505201,8.6358,115.84,115.8,19.84562516]
[1743729505704,0.05457691,115.83,115.8,19.84562516]
[1743729506701,8.69117691,115.83,115.79,51.26642516]
[1743729506908,11.26170207,115.83,115.77,1.2839]
[1743729507206,19.89870207,115.83,115.79,8.6392]
[1743729507403,19.89870207,115.83,115.78,11.20712516]
[1743729507404,11.26170207,115.83,115.78,11.20712516]
[1743729507605,11.20712516,115.82,115.77,11.20712516]
[1743729507805,8.6391,115.8,115.77,11.20712516]
[1743729508706,8.6396,115.79,115.76,53.58632516]
[1743729508906,11.20712516,115.81,115.76,53.58632516]
[1743729509203,0.06634218,115.79,115.76,22.16632516]
[1743729509403,0.06634218,115.79,115.76,11.20712516]
[1743729509805,8.70624218,115.79,115.76,11.20712516]
[1743729510002,0.06634218,115.79,115.76,11.20712516]
[1743729510608,0.06634218,115.79,115.77,62.0]
[1743729511810,0.06634218,115.79,115.76,11.20712516]
[1743729512413,0.06634218,115.79,115.77,8.6407]
[1743729514714,0.06634218,115.79,115.78,62.0]
[1743729516315,8.70594218,115.79,115.76,19.84852516]
[1743729516512,8.70594218,115.79,115.76,8.6414]
[1743729516812,11.27346734,115.79,115.75,8.6422]
[1743729518410,11.17346734,115.79,115.75,8.6422]
[1743729518712,8.6406,115.78,115.75,8.6422]
[1743729519215,8.6406,115.78,115.75,70.6422]
[1743729519614,8.7034993,115.78,115.75,70.70680452]
[1743729521115,8.7034993,115.78,115.75,62.06460452]
[1743729522415,8.7034993,115.78,115.75,70.70690452]
[1743729523215,0.0628993,115.78,115.75,62.06460452]
[1743729523615,8.7034993,115.78,115.75,70.70680452]
[1743729524510,0.0628993,115.78,115.75,70.70680452]
[1743729525213,8.7033993,115.78,115.75,70.70680452]
[1743729526110,19.91052446,115.78,115.75,70.70680452]
[1743729528812,11.27002446,115.78,115.75,62.06460452]
[1743729529218,11.27002446,115.78,115.75,0.06460452]
[1743729529421,8.6416,115.77,115.75,0.06460452]
[1743729531018,11.27002446,115.78,115.75,0.06460452]
[1743729531320,42.71002446,115.78,115.75,0.06460452]
[1743729531719,8.6414,115.77,115.75,0.06460452]
[1743729532017,42.71002446,115.78,115.75,0.06460452]
[1743729532221,42.71002446,115.78,115.75,62.06460452]
[1743729532518,8.6411,115.77,115.75,0.06460452]
[1743729532720,0.0628993,115.78,115.75,0.06460452]
[1743729533020,8.7035993,115.78,115.75,0.06460452]
[1743729533419,11.27002446,115.78,115.75,0.06460452]
[1743729533821,8.6415,115.77,115.75,0.06460452]
[1743729534221,11.27002446,115.78,115.75,0.06460452]
[1743729534721,19.91102446,115.78,115.75,0.06460452]
[1743729535021,11.27002446,115.78,115.75,0.06460452]
[1743729535620,8.6411,115.77,115.75,0.06460452]
[1743729535821,11.20712516,115.77,115.75,0.06460452]
[1743729536628,19.84892516,115.76,115.75,0.06460452]
[1743729536826,11.20712516,115.76,115.7,13.42802516]
[1743729537029,8.6444,115.73,115.69,11.20712516]
[1743729537230,11.20712516,115.74,115.69,42.64712516]
[1743729537623,8.6444,115.73,115.69,51.29372516]
[1743729537823,11.20712516,115.73,115.68,11.20712516]
[1743729538116,31.44,115.74,115.66,300.20873938]
[1743729538117,11.26826511,115.72,115.67,11.20712516]
[1743729538317,8.6459,115.71,115.67,19.85522516]
[1743729538526,8.6459,115.71,115.68,62.0]
[1743729538722,19.85302516,115.71,115.68,62.0]
[1743729538923,11.20712516,115.71,115.68,70.6477]
[1743729539122,11.26826511,115.72,115.67,11.20712516]
[1743729539327,11.20712516,115.74,115.69,11.20712516]
[1743729539527,0.05551909,115.71,115.7,8.6457]